[Event "Lichtenrader Herbst 2018"]
[Site "Berlin"]
[Date "2018.10.27"]
[Round "1"]
[White "Stern, Rene"]
[Black "Spors, Carl Philip"]
[Result "1-0"]
[ECO "E90"]
[WhiteElo "2527"]
[BlackElo "1868"]
[Annotator "ChessBase"]
[PlyCount "65"]
[EventDate "2018.10.27"]
[EventType "swiss"]
[EventCountry "GER"]
[SourceTitle "playchess.com"]
[Source "ChessBase"]
[SourceQuality "1"]
[TimeControl "40/5400+30:1800+30"]

1. Nf3 {[%emt 0:00:00]} Nf6 {[%emt 0:00:01]} 2. c4 {[%emt 0:00:00]} g6 {[%emt 0:00:07]} 3. Nc3 {[%emt 0:00:00]} Bg7 {[%emt 0:00:07]} 4. e4 {[%emt 0:00:00]} O-O {[%emt 0:01:02]} 5. d4 {[%emt 0:00:00]} d6 {[%emt 0:00:06]} 6. h3 {[%emt 0:00:03]} e5 {[%emt 0:00:13]} 7. d5 {[%emt 0:00:05]} Na6 {[%emt 0:00:32]} 8. Be3 {[%emt 0:00:22]} Nh5 {[%emt 0:13:26]} 9. Nd2 {[%emt 0:03:17]} Qe8 {[%emt 0:02:43]} 10. g3 {[%emt 0:03:55]} f5 {[%emt 0:02:49]} 11. exf5 {[%emt 0:00:05]} gxf5 {[%emt 0:00:11]} 12. Be2 {[%emt 0:00:06]} Nf6 {[%emt 0:00:16]} 13. Qc2 {[%emt 0:06:09]} c6 {[%emt 0:04:44]} 14. a3 {[%emt 0:04:17]} Qf7 {[%emt 0:03:38]} 15. O-O-O {[%emt 0:15:54]} cxd5 {[%emt 0:03:11]} 16. cxd5 {[%emt 0:00:06]} Bd7 {[%emt 0:20:47]} 17. Nc4 {[%emt 0:03:40]} Ne8 {[%emt 0:06:04]} 18. f4 {[%emt 0:09:42]} b5 {[%emt 0:02:12]} 19. Na5 {[%emt 0:03:03]} Nec7 {[%emt 0:01:02]} 20. fxe5 {[%emt 0:13:10]} dxe5 {[%emt 0:04:29]} 21. d6 {[%emt 0:04:02]} Ne6 {[%emt 0:03:10]} 22. Kb1 {[%emt 0:02:23]} f4 {[%emt 0:17:02]} 23. gxf4 {[%emt 0:00:50]} exf4 {[%emt 0:00:10]} 24. Bf2 {[%emt 0:00:13]} Nec5 {[%emt 0:02:38]} 25. Bg4 {[%emt 0:06:12]} b4 {[%emt 0:01:43]} 26. Bxc5 {[%emt 0:04:06]} bxc3 {[%emt 0:00:43]} 27. Bd4 {[%emt 0:00:22]} Bxd4 {[%emt 0:04:31]} 28. Rxd4 {[%emt 0:00:12]} Bxg4 {[%emt 0:01:32]} 29. Rg1 {[%emt 0:00:33]} h5 {[%emt 0:02:06]} 30. hxg4 {[%emt 0:00:04]} h4 {[%emt 0:00:24]} 31. Nc6 {[%emt 0:02:19]} Qf6 {[%emt 0:01:58]} 32. Ne7+ {[%emt 0:00:44]} Kf7 {[%emt 0:00:53]} 33. Rxf4 {[%emt 0:00:33]} 1-0

[Event "Lichtenrader Herbst 2018"]
[Site "Berlin"]
[Date "2018.11.02"]
[Round "7"]
[White "Stets, Dmitry"]
[Black "Glantz, Robert"]
[Result "1/2-1/2"]
[ECO "B48"]
[WhiteElo "2373"]
[BlackElo "2285"]
[Annotator "NA"]
[PlyCount "80"]
[EventDate "2018.10.27"]
[EventType "swiss"]
[EventCountry "GER"]
[SourceTitle "playchess.com"]
[Source "ChessBase"]
[SourceQuality "1"]
[TimeControl "40/5400+30:1800+30"]

1. e4 {[%emt 0:00:00]} c5 {[%emt 0:00:00]} 2. Nc3 {[%emt 0:00:00]} Nc6 {[%emt 0:00:14]} 3. Nge2 {[%emt 0:00:00]} e6 {[%emt 0:00:18]} 4. d4 {[%emt 0:00:15]} cxd4 {[%emt 0:00:08]} 5. Nxd4 {[%emt 0:00:08]} Qc7 {[%emt 0:00:25]} 6. Be3 {[%emt 0:00:31]} a6 {[%emt 0:00:23]} 7. Qf3 {[%emt 0:00:32] B48: Sicilian: Taimanov: 5 Nc3 Qc7 6 Be3 a6 without Be2} Bd6 {[%emt 0:01:25]} (7... Nf6 8. O-O-O Ne5 9. Qg3 b5 10. a3 Bb7 11. Bxb5 Rc8 12. Ba4 Nxe4 13. Nxe4 Bxe4 14. Bf4 Qc4 15. Bxe5 Qxa4 {1-0 (38) Vachier Lagrave,M (2789)-Anand,V (2776) Karlsruhe/Baden-Baden 2018}) 8. O-O-O {[%emt 0:03:01]} Be5 {[%emt 0:00:47]} 9. g3 {[%emt 0:26:29]} Nge7 {[%emt 0:01:31]} 10. Qe2 {[%emt 0:06:49]} b5 {[%emt 0:02:52]} 11. f4 {[%emt 0:02:24]} Bxd4 {[%emt 0:00:15]} 12. Bxd4 {[%emt 0:00:10]} Nxd4 {[%emt 0:00:18]} 13. Rxd4 {[%emt 0:00:05]} Rb8 $146 {[%emt 0:00:54]} ({Predecessor:} 13... O-O 14. Bg2 Rb8 {1-0 (30) Potrata,J (2296)-Roehl Montes,J ICCF email 2015}) 14. e5 {[%emt 0:01:42]} O-O {[%emt 0:42:25]} 15. Bg2 {[%emt 0:04:43]} f6 {[%emt 0:06:30]} 16. exf6 {[%emt 0:00:28]} gxf6 {[%emt 0:01:55]} 17. Rhd1 {[%emt 0:06:36]} b4 {[%emt 0:07:20]} 18. Ne4 {[%emt 0:01:01]} d5 {[%emt 0:00:24]} 19. Nd2 {[%emt 0:04:22]} Kh8 {[%emt 0:02:08]} 20. Nf3 {[%emt 0:03:03]} a5 {[%emt 0:00:36]} 21. Kb1 {[%emt 0:10:40] [#]} a4 $1 {[%emt 0:02:27]} 22. Qd2 {[%emt 0:03:05]} Qc5 {[%emt 0:02:40]} 23. Rd3 {[%emt 0:01:33]} Nf5 {[%emt 0:06:09]} 24. g4 {[%emt 0:05:37]} Nd6 {[%emt 0:00:29]} 25. Qe3 {[%emt 0:00:28]} Qxe3 {[%emt 0:06:08]} 26. Rxe3 {[%emt 0:00:06]} Ne4 {[%emt 0:00:38]} 27. h3 {[%emt 0:03:22]} Rb6 {[%emt 0:03:38]} 28. a3 {[%emt 0:02:05]} Ba6 {[%emt 0:01:41]} 29. axb4 {[%emt 0:00:54]} Rxb4 {[%emt 0:00:29]} 30. Rd4 {[%emt 0:01:34]} (30. c3 $11 Rb6 31. Ne1) 30... Bc4 {[%emt 0:03:12]} 31. c3 {[%emt 0:01:13] [#]} Rb6 {[%emt 0:00:11]} ({Better is} 31... Rb3 $1 $19 32. Rxc4 Rfb8) 32. Nd2 {[%emt 0:04:47]} Nxd2+ {[%emt 0:01:20]} 33. Rxd2 {[%emt 0:00:06]} Rfb8 {[%emt 0:00:33]} 34. Bf3 {[%emt 0:02:32] [#]} Kg7 $11 {[%emt 0:01:23]} ({Black should try} 34... Rb3 $1 $17 35. Be2 {[#]} d4 $1 {[%mdl 512]} 36. Bxc4 dxe3 37. Bxb3 exd2 38. Bxa4 e5) 35. Bd1 {[%emt 0:01:20]} a3 {[%emt 0:01:24]} 36. b4 {[%emt 0:00:06]} Rd6 {[%emt 0:01:22]} 37. Be2 {[%emt 0:01:58]} Bb3 {[%emt 0:01:00]} 38. Bd1 {[%emt 0:00:55]} Bc4 {[%emt 0:01:11]} 39. Be2 {[%emt 0:00:36]} Bb3 {[%emt 0:00:41]} 40. Bd1 {[%emt 0:00:07]} Bc4 {[%emt 0:00:39]} 1/2-1/2

[Event "Lichtenrader Herbst 2018"]
[Site "Berlin"]
[Date "2018.11.02"]
[Round "7"]
[White "Florstedt, Johannes"]
[Black "Kurayan, Ruslan"]
[Result "0-1"]
[ECO "B76"]
[WhiteElo "2310"]
[BlackElo "2385"]
[Annotator "NA"]
[PlyCount "78"]
[EventDate "2018.10.27"]
[EventType "swiss"]
[EventCountry "GER"]
[SourceTitle "playchess.com"]
[Source "ChessBase"]
[SourceQuality "1"]
[TimeControl "40/5400+30:1800+30"]

1. e4 {[%emt 0:00:00]} c5 {[%emt 0:00:00]} 2. Nf3 {[%emt 0:00:00]} d6 {[%emt 0:00:00]} 3. d4 {[%emt 0:00:00]} Nf6 {[%emt 0:00:00]} 4. Nc3 {[%emt 0:00:00]} cxd4 {[%emt 0:00:00]} 5. Nxd4 {[%emt 0:00:00]} g6 {[%emt 0:00:03]} 6. Be3 {[%emt 0:00:02]} Bg7 {[%emt 0:00:09]} 7. f3 {[%emt 0:00:06]} O-O {[%emt 0:00:09]} 8. Qd2 {[%emt 0:00:11]} Nc6 {[%emt 0:00:09]} 9. O-O-O {[%emt 0:00:36]} d5 {[%emt 0:00:10]} 10. exd5 {[%emt 0:00:08]} Nxd5 {[%emt 0:00:07]} 11. Nxc6 {[%emt 0:00:09]} bxc6 {[%emt 0:00:20]} 12. Bd4 {[%emt 0:00:10]} Nxc3 {[%emt 0:11:49]} 13. Qxc3 {[%emt 0:01:19]} Bh6+ {[%emt 0:05:50]} 14. Be3 {[%emt 0:00:14]} Bxe3+ {[%emt 0:00:08]} 15. Qxe3 {[%emt 0:00:04]} Qb6 {[%emt 0:00:05]} 16. Re1 {[%emt 0:00:09] B76: Sicilian Dragon: Yugoslav Attack, 9 g4 and 9 0-0-0} (16. Qxe7 Be6 17. Qa3 Rad8 18. Bd3 Rd5 19. b3 Rfd8 20. Rde1 Rd4 21. Re5 R8d5 22. Re2 Qd8 23. Rhe1 a5 24. Re4 a4 25. Rxd4 Rxd4 {½-½ (51) Wang,H (2724)-Timofeev,A (2690) Ningbo 2010}) 16... Be6 {[%emt 0:10:30]} 17. h4 {[%emt 0:04:28]} Rfd8 $146 {[%emt 0:13:11]} ({Predecessor:} 17... Rab8 18. b3 Rfd8 19. Qc3 Qd4 20. Qxd4 Rxd4 21. h5 Kg7 22. Re5 Rd5 23. Rxd5 cxd5 {½-½ (46) Abdumalik,Z (2379)-Kuderinov,K (2465) Moscow 2015}) 18. h5 {[%emt 0:18:11]} Rab8 {[%emt 0:01:30]} 19. b3 {[%emt 0:03:26]} Qxe3+ {[%emt 0:21:30]} 20. Rxe3 {[%emt 0:00:06]} c5 {[%emt 0:00:05]} 21. Bd3 {[%emt 0:05:49]} Rd6 {[%emt 0:08:56]} 22. Re5 {[%emt 0:06:22]} Rc8 {[%emt 0:02:26]} 23. Rh4 {[%emt 0:00:50]} Rc7 {[%emt 0:00:58]} 24. Kb2 {[%emt 0:03:15]} Kg7 {[%emt 0:04:00]} 25. h6+ {[%emt 0:01:11]} Kf6 {[%emt 0:01:02]} 26. f4 {[%emt 0:14:51]} c4 {[%emt 0:10:02]} 27. Be4 {[%emt 0:13:18]} c3+ {[%emt 0:04:08]} 28. Kc1 {[%emt 0:00:06]} (28. Ka3 $11 {keeps the balance.} Rd4 29. g4 Bxg4 30. Rxg4 Rxe4 31. Rxe4) 28... Rd4 {[%emt 0:00:49]} 29. Bd3 {[%emt 0:00:34]} Bf5 {[%emt 0:02:16]} 30. Bxf5 {[%emt 0:08:15]} Rxf4 {[%emt 0:00:06]} 31. Rxf4 {[%emt 0:00:37]} Kxe5 {[%emt 0:00:01]} 32. Rf3 {[%emt 0:02:19]} gxf5 {[%emt 0:00:05]} 33. Rg3 {[%emt 0:01:06]} (33. Kd1 $17) 33... Kf4 {[%emt 0:04:02]} 34. Rg7 {[%emt 0:00:19]} e5 {[%emt 0:00:43]} 35. Rxh7 {[%emt 0:09:13]} Rc6 $19 {[%emt 0:00:16]} 36. Kd1 {[%emt 0:00:02]} Ke3 {[%emt 0:00:39]} 37. Rg7 {[%emt 0:00:14]} Kf2 {[%emt 0:00:34]} 38. Rg5 {[%emt 0:02:45]} Rd6+ {[%emt 0:00:07]} 39. Kc1 {[%emt 0:00:03]} Ke2 {[%emt 0:00:24]} 0-1

[Event "Lichtenrader Herbst 2018"]
[Site "Berlin"]
[Date "2018.11.04"]
[Round "9"]
[White "Polatel, Ali"]
[Black "Bruedigam, Martin"]
[Result "0-1"]
[ECO "A45"]
[WhiteElo "2214"]
[BlackElo "2392"]
[Annotator "ChessBase"]
[PlyCount "256"]
[EventDate "2018.10.27"]
[EventType "swiss"]
[EventCountry "GER"]
[SourceTitle "playchess.com"]
[Source "ChessBase"]
[SourceQuality "1"]
[TimeControl "40/5400+30:1800+30"]

1. d4 {[%emt 0:00:00]} Nf6 {[%emt 0:00:00]} 2. Bg5 {[%emt 0:00:00]} e6 {[%emt 0:01:20]} 3. e4 {[%emt 0:01:36]} h6 {[%emt 0:00:07]} 4. Bxf6 {[%emt 0:00:17]} Qxf6 {[%emt 0:00:05]} 5. c3 {[%emt 0:01:12]} d6 {[%emt 0:00:40]} 6. Bc4 {[%emt 0:02:11]} Nd7 {[%emt 0:02:08]} 7. Ne2 {[%emt 0:03:33]} Qg6 {[%emt 0:16:32]} 8. Ng3 {[%emt 0:08:06]} h5 {[%emt 0:01:12]} 9. h4 {[%emt 0:06:13]} Be7 {[%emt 0:03:48]} 10. Nd2 {[%emt 0:02:29]} Qh6 {[%emt 0:00:59]} 11. a4 {[%emt 0:06:14]} Nf8 {[%emt 0:01:04]} 12. Be2 {[%emt 0:08:15]} g6 {[%emt 0:12:02]} 13. Nf3 {[%emt 0:09:17]} Nd7 {[%emt 0:00:46]} 14. a5 {[%emt 0:00:42]} a6 {[%emt 0:00:29]} 15. e5 {[%emt 0:04:46]} Qg7 {[%emt 0:05:15]} 16. exd6 {[%emt 0:04:38]} cxd6 {[%emt 0:00:09]} 17. d5 {[%emt 0:01:05]} e5 {[%emt 0:05:46]} 18. Ng5 {[%emt 0:04:00]} Qh6 {[%emt 0:06:26]} 19. Qa4 {[%emt 0:05:29]} O-O {[%emt 0:06:29]} 20. Qa3 {[%emt 0:07:00]} Nf6 {[%emt 0:02:26]} 21. c4 {[%emt 0:00:33]} Nh7 {[%emt 0:03:09]} 22. N3e4 {[%emt 0:03:25]} Rd8 {[%emt 0:02:47]} 23. Qg3 {[%emt 0:03:16]} Bf5 {[%emt 0:05:14]} 24. Bd3 {[%emt 0:00:36]} Bxe4 {[%emt 0:00:49]} 25. Nxe4 {[%emt 0:01:18]} f5 {[%emt 0:00:16]} 26. Nc3 {[%emt 0:01:11]} e4 {[%emt 0:00:18]} 27. Be2 {[%emt 0:00:23]} Bf6 {[%emt 0:00:34]} 28. O-O {[%emt 0:01:15]} Be5 {[%emt 0:01:18]} 29. Qe3 {[%emt 0:01:41]} Qxe3 {[%emt 0:02:50]} 30. fxe3 {[%emt 0:00:02]} Nf6 {[%emt 0:00:19]} 31. Kf2 {[%emt 0:01:18]} Bxc3 {[%emt 0:02:08]} 32. bxc3 {[%emt 0:00:02]} Nd7 {[%emt 0:00:59]} 33. Rfb1 {[%emt 0:00:33]} Nc5 {[%emt 0:00:10]} 34. Rb6 {[%emt 0:00:16]} Kg7 {[%emt 0:00:47]} 35. Kg3 {[%emt 0:00:25]} Kf6 {[%emt 0:00:26]} 36. Kf4 {[%emt 0:00:13]} Rd7 {[%emt 0:00:26]} 37. Rh1 {[%emt 0:02:14]} Rc8 {[%emt 0:01:19]} 38. Rb4 {[%emt 0:02:10]} Rdc7 {[%emt 0:00:53]} 39. Rb6 {[%emt 0:00:23]} Rd8 {[%emt 0:00:16]} 40. Rd1 {[%emt 0:01:09]} Na4 {[%emt 0:03:00]} 41. Rb3 {[%emt 0:33:52]} Rg7 {[%emt 0:30:48]} 42. Kg3 {[%emt 0:06:08]} Ke5 {[%emt 0:01:55]} 43. Kf2 {[%emt 0:00:16]} Nc5 {[%emt 0:01:19]} 44. Rbb1 {[%emt 0:01:13]} Rc8 {[%emt 0:02:34]} 45. Rb4 {[%emt 0:00:00]} Rcc7 {[%emt 0:00:00]} 46. Rh1 {[%emt 0:00:00]} Rgf7 {[%emt 0:00:00]} 47. Rh3 {[%emt 0:00:00]} Nd7 {[%emt 0:00:00]} 48. Rh1 {[%emt 0:00:00]} Rf8 {[%emt 0:00:00]} 49. Rhb1 {[%emt 0:00:00]} Nc5 {[%emt 0:00:00]} 50. Rh1 {[%emt 0:00:00]} Rfc8 {[%emt 0:00:00]} 51. Rd1 {[%emt 0:00:00]} Rf7 {[%emt 0:00:00]} 52. g3 {[%emt 0:00:00]} Rcc7 {[%emt 0:00:00]} 53. Rdb1 {[%emt 0:00:00]} Kf6 {[%emt 0:00:00]} 54. Rb6 {[%emt 0:00:00]} Ke7 {[%emt 0:00:00]} 55. R6b4 {[%emt 0:00:00]} Kd8 {[%emt 0:00:00]} 56. Ke1 {[%emt 0:00:00]} Kc8 {[%emt 0:00:00]} 57. Kd2 {[%emt 0:00:00]} Nd7 {[%emt 0:00:00]} 58. Ra4 {[%emt 0:00:00]} Rc5 {[%emt 0:00:00]} 59. Rbb4 {[%emt 0:00:00]} Kb8 {[%emt 0:00:00]} 60. Bf1 {[%emt 0:00:00]} Rf8 {[%emt 0:00:00]} 61. Ra3 {[%emt 0:00:00]} Rfc8 {[%emt 0:00:00]} 62. Kc2 {[%emt 0:00:00]} Ka7 {[%emt 0:00:00]} 63. Be2 {[%emt 0:00:00]} R8c7 {[%emt 0:00:00]} 64. Rba4 {[%emt 0:00:00]} Ne5 {[%emt 0:00:00]} 65. Kb3 {[%emt 0:00:00]} Rf7 {[%emt 0:02:03]} 66. Ra1 {[%emt 0:01:10]} Rc8 {[%emt 0:00:57]} 67. Rf1 {[%emt 0:01:00]} Rfc7 {[%emt 0:02:05]} 68. Rfa1 {[%emt 0:00:39]} Nd7 {[%emt 0:00:22]} 69. Kc2 {[%emt 0:00:19]} Rb8 {[%emt 0:00:44]} 70. Rb4 {[%emt 0:00:39]} Rc5 {[%emt 0:00:20]} 71. Rba4 {[%emt 0:00:58]} Ra8 {[%emt 0:03:38]} 72. Rb4 {[%emt 0:00:42]} Kb8 {[%emt 0:00:32]} 73. Bf1 {[%emt 0:01:15]} Kc7 {[%emt 0:00:10]} 74. Be2 {[%emt 0:00:43]} Rb8 {[%emt 0:00:13]} 75. Rba4 {[%emt 0:00:25]} Rf8 {[%emt 0:00:38]} 76. Rb1 {[%emt 0:00:25]} Ne5 {[%emt 0:00:52]} 77. Rf1 {[%emt 0:00:23]} Kc8 {[%emt 0:00:35]} 78. Kb3 {[%emt 0:00:15]} Rf7 {[%emt 0:00:37]} 79. Re1 {[%emt 0:00:52]} Kc7 {[%emt 0:00:57]} 80. Kc2 {[%emt 0:00:15]} Rf8 {[%emt 0:01:34]} 81. Rf1 {[%emt 0:00:19]} Rg8 {[%emt 0:00:38]} 82. Kd2 {[%emt 0:01:22]} Rb8 {[%emt 0:00:38]} 83. Rfa1 {[%emt 0:00:27]} Ra8 {[%emt 0:00:20]} 84. Rb1 {[%emt 0:00:11]} Nd7 {[%emt 0:00:08]} 85. Rba1 {[%emt 0:01:38]} b6 {[%emt 0:01:48]} 86. axb6+ {[%emt 0:00:13]} Kxb6 {[%emt 0:00:04]} 87. Rb1+ {[%emt 0:00:36]} Kc7 {[%emt 0:00:10]} 88. Rb5 {[%emt 0:02:22]} axb5 {[%emt 0:04:02]} 89. Rxa8 {[%emt 0:00:15]} bxc4 {[%emt 0:00:05]} 90. Ra7+ {[%emt 0:02:06]} Kd8 {[%emt 0:00:32]} 91. Ke1 {[%emt 0:02:13]} Ne5 {[%emt 0:00:32]} 92. Ra4 {[%emt 0:00:26]} Ke7 {[%emt 0:00:36]} 93. Kf2 {[%emt 0:00:45]} Rxd5 {[%emt 0:01:58]} 94. Bxc4 {[%emt 0:00:27]} Nxc4 {[%emt 0:02:43]} 95. Rxc4 {[%emt 0:00:03]} Rc5 {[%emt 0:00:05]} 96. Ra4 {[%emt 0:01:29]} Rxc3 {[%emt 0:00:04]} 97. Ra7+ {[%emt 0:00:16]} Ke6 {[%emt 0:00:05]} 98. Rg7 {[%emt 0:00:07]} Rc2+ {[%emt 0:00:10]} 99. Kf1 {[%emt 0:00:06]} Kf6 {[%emt 0:00:08]} 100. Rd7 {[%emt 0:00:21]} Rc6 {[%emt 0:00:42]} 101. Rd8 {[%emt 0:00:55]} Ke7 {[%emt 0:00:29]} 102. Ra8 {[%emt 0:00:20]} d5 {[%emt 0:00:30]} 103. Rg8 {[%emt 0:00:24]} Rd6 {[%emt 0:00:18]} 104. Kf2 {[%emt 0:00:41]} Kf7 {[%emt 0:00:25]} 105. Ra8 {[%emt 0:00:12]} d4 {[%emt 0:00:24]} 106. exd4 {[%emt 0:00:38]} Rxd4 {[%emt 0:00:05]} 107. Ra3 {[%emt 0:00:07]} Rd2+ {[%emt 0:00:28]} 108. Ke3 {[%emt 0:00:19]} Rd6 {[%emt 0:03:54]} 109. Kf4 {[%emt 0:00:21]} Kf6 {[%emt 0:00:08]} 110. Ra8 {[%emt 0:00:25]} Re6 {[%emt 0:01:18]} 111. Ke3 {[%emt 0:01:14]} Rc6 {[%emt 0:00:38]} 112. Kf4 {[%emt 0:00:09]} Re6 {[%emt 0:01:04]} 113. Ke3 {[%emt 0:00:02]} Rb6 {[%emt 0:00:13]} 114. Kf4 {[%emt 0:00:02]} Rb3 {[%emt 0:00:26]} 115. Ra6+ {[%emt 0:00:24]} Kg7 {[%emt 0:00:14]} 116. g4 {[%emt 0:00:14]} fxg4 {[%emt 0:01:05]} 117. Re6 {[%emt 0:00:58]} Kh6 {[%emt 0:01:00]} 118. Kxe4 {[%emt 0:00:53]} Rh3 {[%emt 0:00:27]} 119. Re8 {[%emt 0:00:56]} Rxh4 {[%emt 0:00:14]} 120. Kf4 {[%emt 0:00:11]} Rh1 {[%emt 0:00:48]} 121. Rh8+ {[%emt 0:00:12]} Kg7 {[%emt 0:00:05]} 122. Ra8 {[%emt 0:00:06]} Rf1+ {[%emt 0:00:11]} 123. Kg5 {[%emt 0:00:15]} g3 {[%emt 0:01:10]} 124. Ra7+ {[%emt 0:00:27]} Rf7 {[%emt 0:00:47]} 125. Ra3 {[%emt 0:00:20]} g2 {[%emt 0:00:13]} 126. Rg3 {[%emt 0:00:10]} Rf5+ {[%emt 0:00:14]} 127. Kh4 {[%emt 0:00:08]} Rf4+ {[%emt 0:00:05]} 128. Kh3 {[%emt 0:00:12]} Rf3 {[%emt 0:00:21]} 0-1